bitfinex/quotes_BTCUSD_20260215
["timestamp","ask_amount","ask_price","bid_price","bid_amount"]
[1771116339010,0.07172737,69709.0,69706.0,4e-05]
[1771116339452,0.07172737,69710.0,69706.0,4e-05]
[1771116340572,0.07272737,69710.0,69706.0,4e-05]
[1771116341769,0.07172737,69710.0,69706.0,4e-05]
[1771116341964,0.40298651,69714.0,69706.0,4e-05]
[1771116341965,0.02456073,69714.0,69706.0,4e-05]
[1771116342190,0.07172868,69708.0,69706.0,4e-05]
[1771116342401,0.0717288,69707.0,69706.0,4e-05]
[1771116342640,0.0717288,69707.0,69706.0,0.00204]
[1771116342826,0.07172777,69708.0,69704.0,4e-05]
[1771116343287,0.07173086,69705.0,69704.0,4e-05]
[1771116345445,0.07473086,69705.0,69704.0,4e-05]
[1771116345599,0.07173086,69705.0,69704.0,4e-05]
[1771116345805,0.07673086,69705.0,69704.0,4e-05]
[1771116346236,0.07173086,69705.0,69704.0,4e-05]
[1771116346398,0.07573086,69705.0,69704.0,4e-05]
[1771116346921,0.07173086,69705.0,69704.0,4e-05]
[1771116347936,0.07473086,69705.0,69704.0,4e-05]
[1771116348319,0.07173086,69705.0,69704.0,4e-05]
[1771116348571,0.07873086,69705.0,69704.0,4e-05]
[1771116348919,0.07173086,69705.0,69704.0,4e-05]
[1771116349125,0.07873086,69705.0,69704.0,4e-05]
[1771116349343,0.07913086,69705.0,69704.0,4e-05]
[1771116349592,0.07213086,69705.0,69704.0,4e-05]
[1771116349765,0.07913086,69705.0,69704.0,4e-05]
[1771116351407,0.07213086,69705.0,69704.0,4e-05]
[1771116351808,0.08013086,69705.0,69704.0,4e-05]
[1771116352007,0.07213086,69705.0,69704.0,4e-05]
[1771116352451,0.08013086,69705.0,69704.0,4e-05]
[1771116352617,0.07213086,69705.0,69704.0,4e-05]
[1771116353031,0.08013086,69705.0,69704.0,4e-05]
[1771116353230,0.07213086,69705.0,69704.0,4e-05]
[1771116353551,0.08013086,69705.0,69704.0,4e-05]
[1771116353747,0.0084,69705.0,69704.0,4e-05]
[1771116354374,0.08013086,69705.0,69704.0,4e-05]
[1771116354574,0.07173048,69706.0,69704.0,4e-05]
[1771116355188,0.007,69705.0,69704.0,4e-05]
[1771116355582,0.07173048,69706.0,69704.0,4e-05]
[1771116355786,0.07173086,69705.0,69704.0,4e-05]
[1771116356195,0.0004,69705.0,69704.0,4e-05]
[1771116356395,0.0074,69705.0,69704.0,4e-05]
[1771116356810,0.0004,69705.0,69704.0,4e-05]
[1771116358064,0.0004,69705.0,69704.0,0.00204]
[1771116358284,0.0004,69705.0,69704.0,4e-05]
[1771116358514,0.0004,69705.0,69704.0,0.00204]
[1771116358992,0.0004,69705.0,69704.0,4e-05]
[1771116359225,0.07213086,69705.0,69704.0,0.00204]
[1771116359457,0.07213086,69705.0,69704.0,4e-05]
[1771116359669,0.0004,69705.0,69704.0,0.00204]
[1771116360540,0.0004,69705.0,69698.0,4e-05]
[1771116360741,0.0004,69705.0,69704.0,0.07173189]
[1771116360945,0.0004,69705.0,69703.0,0.03720731]
[1771116361173,0.0004,69705.0,69703.0,0.06154223]
[1771116361381,0.0004,69705.0,69704.0,0.07173189]
[1771116361581,0.0004,69705.0,69704.0,0.07373189]
[1771116362058,0.0004,69705.0,69704.0,0.07173189]
[1771116362181,0.0004,69705.0,69704.0,0.09606681]
[1771116363038,0.0004,69705.0,69704.0,0.11206681]
[1771116363211,0.0004,69705.0,69704.0,0.11306681]
[1771116363414,4e-05,69708.0,69705.0,0.09606548]
[1771116363969,4e-05,69708.0,69705.0,0.02433492]
[1771116364718,4e-05,69708.0,69705.0,0.09606568]
[1771116365130,4e-05,69708.0,69705.0,0.10206568]
[1771116367162,4e-05,69708.0,69705.0,0.09606568]
[1771116367385,4e-05,69708.0,69705.0,0.09906568]
[1771116367808,4e-05,69708.0,69705.0,0.09606568]
[1771116368011,4e-05,69708.0,69705.0,0.09906568]
[1771116368247,4e-05,69706.0,69705.0,0.09902568]
[1771116368422,4e-05,69708.0,69705.0,0.09902568]
[1771116369348,0.00044,69708.0,69705.0,0.09902568]
[1771116369564,0.00044,69708.0,69705.0,0.07473076]
[1771116370550,0.00044,69708.0,69705.0,0.07473084]
[1771116371408,0.00044,69708.0,69705.0,0.07173084]
[1771116372037,0.00044,69708.0,69704.0,0.07193154]
[1771116372399,0.00044,69708.0,69705.0,0.07173059]
[1771116373031,0.00044,69708.0,69706.0,0.0717292]
[1771116373250,0.00044,69708.0,69705.0,0.07173059]
[1771116373834,0.00044,69708.0,69704.0,0.07293149]
[1771116374043,0.00044,69708.0,69704.0,0.07193149]
[1771116374230,0.00044,69708.0,69705.0,0.001]
[1771116374671,0.00044,69708.0,69704.0,0.07193149]
[1771116375130,0.00044,69708.0,69704.0,0.07293149]
[1771116375325,0.00044,69708.0,69704.0,0.07193149]
[1771116376002,0.00044,69708.0,69704.0,0.0002]
[1771116376975,0.00044,69708.0,69704.0,0.07193169]
[1771116377261,0.00044,69708.0,69704.0,0.0002]
[1771116377462,0.00044,69708.0,69705.0,0.0002]
[1771116379274,0.00044,69708.0,69706.0,0.07172911]
[1771116379477,0.00044,69708.0,69705.0,0.0002]
[1771116379680,0.00044,69708.0,69705.0,0.07193052]
[1771116379882,0.00044,69708.0,69705.0,0.0002]
[1771116380080,0.00044,69708.0,69705.0,0.0719308]
[1771116383359,0.00044,69708.0,69705.0,0.0002]
[1771116383730,0.00044,69708.0,69705.0,0.0002841]
[1771116390077,0.07216839,69708.0,69705.0,0.0002841]
[1771116391382,0.07172983,69707.0,69698.0,0.0003244]
[1771116391621,0.00044,69708.0,69698.0,0.0003244]
[1771116391622,0.07173435,69702.0,69698.0,0.0003244]
[1771116391824,0.07173321,69703.0,69698.0,0.0003244]
[1771116392028,0.07173248,69704.0,69698.0,0.0003244]
[1771116392608,0.07173297,69703.0,69698.0,0.0003244]
[1771116393146,0.07173297,69703.0,69694.0,0.0717414]
[1771116393147,0.07175557,69681.0,69666.0,0.28708173]
[1771116393355,0.07175564,69681.0,69672.0,0.07176392]
[1771116393577,0.43271689,69690.0,69670.0,0.62473086]
[1771116393578,0.0717568,69680.0,69670.0,1.05732775]
[1771116393764,0.07175597,69681.0,69671.0,0.07196506]
[1771116393971,0.0717552,69682.0,69671.0,0.07196506]
[1771116394211,0.0717537,69683.0,69671.0,0.02481086]
[1771116394412,0.0717537,69683.0,69672.0,0.07176484]
[1771116394570,0.0717537,69683.0,69674.0,0.07176198]
[1771116394766,0.07175562,69681.0,69674.0,0.07176198]
[1771116394957,0.07175685,69680.0,69672.0,0.0963757]
[1771116395152,0.07175562,69681.0,69672.0,0.0963757]
[1771116395363,0.07175562,69681.0,69673.0,0.07176374]
[1771116395920,0.07175562,69681.0,69672.0,0.09637556]
[1771116396069,0.07175562,69681.0,69672.0,0.09837556]
[1771116396269,0.07176163,69676.0,69672.0,0.002]
[1771116396570,0.0001612,69687.0,69671.0,0.0002]
[1771116396571,0.07176255,69675.0,69671.0,0.0002]
[1771116396770,0.07122255,69675.0,69673.0,0.004]
[1771116396980,0.07176086,69676.0,69671.0,0.0002]
[1771116397549,0.07476086,69676.0,69671.0,0.0002]
[1771116398312,4e-05,69672.0,69671.0,0.0002]
[1771116398513,4e-05,69674.0,69671.0,0.0002]
[1771116398754,4e-05,69674.0,69673.0,0.0002]
[1771116399928,4e-05,69676.0,69673.0,0.0002]
[1771116400534,0.003,69674.0,69673.0,0.0002]
[1771116401770,4e-05,69676.0,69673.0,0.0002]
[1771116401971,4e-05,69684.0,69673.0,0.02294714]
[1771116402174,4e-05,69684.0,69679.0,0.07175668]
[1771116402370,0.0719114,69687.0,69674.0,0.43259689]
[1771116402371,0.0001612,69687.0,69674.0,0.43259689]
[1771116402574,0.00016,69690.0,69674.0,0.43259689]
[1771116402575,0.07174403,69693.0,69685.0,0.07175043]
[1771116402795,0.07174403,69693.0,69684.0,0.07175043]
[1771116402796,0.07187481,69693.0,69684.0,0.07175043]
[1771116403034,0.00013078,69693.0,69686.0,0.07175017]
[1771116403826,0.07187412,69693.0,69684.0,0.07375043]
[1771116404039,0.07174523,69692.0,69684.0,0.07375043]
[1771116404792,0.00013078,69693.0,69684.0,0.002]
[1771116404996,0.00013078,69693.0,69686.0,0.07174961]
[1771116405197,0.00013078,69693.0,69687.0,0.07174939]
[1771116405419,0.00013078,69693.0,69686.0,0.07175019]
[1771116405732,0.00053078,69693.0,69687.0,0.07174924]
[1771116405945,0.00053078,69693.0,69686.0,0.07575019]
[1771116406155,0.00053078,69693.0,69688.0,0.07174802]
[1771116406856,0.0001975,69698.0,69684.0,0.08729261]
[1771116407088,0.0001975,69698.0,69692.0,0.07174421]
[1771116407582,0.0001975,69698.0,69693.0,0.07174267]
[1771116407793,0.0001975,69698.0,69691.0,0.071745]
[1771116408278,0.0001975,69698.0,69692.0,0.07174402]
[1771116408916,0.11395841,69706.0,69690.0,0.09584281]
[1771116408917,0.07175234,69724.0,69712.0,0.02413672]
[1771116409119,0.07175234,69724.0,69708.0,4e-05]
[1771116409120,0.02499956,69718.0,69708.0,4e-05]
[1771116409267,0.09647905,69719.0,69708.0,4e-05]
[1771116409466,0.09647905,69715.0,69708.0,4e-05]
[1771116409883,0.09647905,69715.0,69709.0,0.28690699]
[1771116410089,0.0966099,69715.0,69712.0,0.07172323]
[1771116410290,0.07507782,69715.0,69712.0,0.07172323]
[1771116410511,0.00016,69720.0,69709.0,0.28690699]
[1771116410866,0.09233263,69720.0,69715.0,0.07172029]
[1771116411065,0.09233263,69720.0,69710.0,0.02409672]
[1771116411266,0.09233263,69720.0,69711.0,0.07172409]
[1771116411873,0.09233263,69720.0,69708.0,4e-05]
[1771116411874,0.07171755,69718.0,69709.0,0.07172618]
[1771116412012,0.00016,69720.0,69708.0,4e-05]
[1771116412013,0.02499956,69716.0,69708.0,4e-05]
[1771116412217,0.09214646,69714.0,69708.0,4e-05]
[1771116412415,0.09214646,69714.0,69711.0,0.004]
[1771116412618,0.09214646,69714.0,69708.0,0.07176716]
[1771116412886,0.09214646,69714.0,69708.0,4e-05]
[1771116413012,0.09214646,69714.0,69709.0,0.07372648]
[1771116413216,4e-05,69712.0,69709.0,0.07172648]
[1771116413639,4e-05,69712.0,69711.0,0.005]
[1771116414816,4e-05,69712.0,69704.0,0.63072537]
[1771116414817,0.11517308,69710.0,69683.0,0.02409672]
[1771116415019,0.09213846,69699.0,69691.0,0.07174527]
[1771116415153,0.07173717,69699.0,69691.0,0.07174527]
[1771116415352,0.09213846,69700.0,69691.0,0.07174505]
[1771116415757,0.09213846,69700.0,69690.0,0.00012]
[1771116416109,0.09213846,69700.0,69694.0,0.07174142]
[1771116416605,0.09213846,69700.0,69695.0,0.07174115]
[1771116416850,0.09213846,69700.0,69694.0,0.07174142]
[1771116417028,0.07059781,69700.0,69694.0,0.07174142]
[1771116417230,0.07059781,69700.0,69695.0,0.07174103]
[1771116417432,0.07059781,69700.0,69694.0,0.07174142]
[1771116417598,0.07059781,69700.0,69695.0,0.07174092]
[1771116417798,0.07059781,69700.0,69694.0,0.07174206]
[1771116418417,0.07059781,69700.0,69694.0,0.07274206]
[1771116418757,0.07059781,69700.0,69690.0,0.31119826]
[1771116418933,0.07259781,69700.0,69690.0,0.31119826]
[1771116419253,0.07259781,69700.0,69694.0,0.07174187]
[1771116419614,0.07299781,69700.0,69695.0,0.07174086]
[1771116419821,0.0004,69700.0,69695.0,0.07174086]
[1771116420023,0.0004,69700.0,69696.0,0.07174006]
[1771116420221,0.02499956,69706.0,69695.0,0.07174086]
[1771116420222,0.08895885,69707.0,69695.0,0.02409672]
[1771116420421,0.08895885,69707.0,69702.0,0.0717339]
[1771116420624,0.08895885,69707.0,69695.0,0.02409672]
[1771116421024,0.08895885,69707.0,69704.0,0.07173135]
[1771116421228,0.07173003,69706.0,69698.0,0.07173736]
[1771116421450,0.08895885,69707.0,69690.0,0.00012]
[1771116421623,0.07173798,69699.0,69691.0,0.0717445]
[1771116421835,0.08895885,69697.0,69690.0,0.07186613]
[1771116422025,0.08895885,69697.0,69692.0,0.07174327]
[1771116422285,0.0717268,69709.0,69691.0,0.2869811]
[1771116422420,0.00016,69710.0,69691.0,0.02409672]
[1771116422622,0.00016,69710.0,69699.0,0.02409672]
[1771116422822,0.00016,69710.0,69707.0,0.0717288]
[1771116423238,0.08899885,69708.0,69705.0,0.07172989]
[1771116423432,4e-05,69708.0,69706.0,0.07172924]
[1771116423983,4e-05,69708.0,69705.0,0.07172989]
[1771116424122,0.08899885,69708.0,69705.0,0.07172989]
[1771116424537,0.08899885,69708.0,69702.0,0.07173191]
[1771116424840,0.07173058,69706.0,69698.0,0.07173794]
[1771116426659,0.06863058,69706.0,69699.0,0.07173696]
[1771116427247,0.0717288,69707.0,69698.0,0.07193603]
[1771116427442,4e-05,69708.0,69698.0,0.02429672]
[1771116427669,4e-05,69708.0,69705.0,0.07173048]
[1771116428012,4e-05,69708.0,69706.0,0.07172908]
[1771116428174,4e-05,69708.0,69707.0,0.0715688]
[1771116429036,0.08899885,69712.0,69698.0,0.43269561]
[1771116429037,4e-05,69712.0,69711.0,0.07172469]
[1771116429242,4e-05,69712.0,69710.0,0.07172544]
[1771116429461,4e-05,69712.0,69711.0,0.07172469]
[1771116431319,4e-05,69712.0,69711.0,0.07472469]
[1771116431518,4e-05,69712.0,69711.0,0.07172469]
[1771116431744,4e-05,69712.0,69706.0,0.07172908]
[1771116431941,4e-05,69712.0,69711.0,0.003]
[1771116432735,4e-05,69712.0,69708.0,0.07172693]
[1771116433433,4e-05,69712.0,69709.0,0.07172673]
[1771116433842,4e-05,69712.0,69708.0,0.07172693]
[1771116434043,4e-05,69712.0,69708.0,0.0002]
[1771116434239,0.09393581,69712.0,69708.0,0.0002]
[1771116435263,0.09393581,69712.0,69704.0,0.07173109]
[1771116435864,0.16566024,69712.0,69705.0,0.07173015]
[1771116439001,0.16666024,69712.0,69705.0,0.07173015]
[1771116439176,0.09493581,69712.0,69705.0,0.07173015]
[1771116439548,0.09493581,69712.0,69706.0,0.07172983]
[1771116440392,0.00104,69712.0,69703.0,0.07173189]
[1771116440708,0.00104,69712.0,69710.0,0.0717248]
[1771116440902,0.00044,69712.0,69709.0,0.0717248]
[1771116441107,0.00044,69712.0,69708.0,0.07172763]
[1771116441432,0.09433581,69712.0,69708.0,0.07172763]
[1771116441927,0.09433581,69712.0,69710.0,0.001]
[1771116442115,0.09433581,69712.0,69708.0,0.07172763]
[1771116443882,0.00044,69712.0,69709.0,0.07172626]
[1771116444091,0.00044,69712.0,69711.0,0.07172469]
[1771116444625,0.00044,69712.0,69710.0,0.07172555]
[1771116444827,0.00044,69712.0,69711.0,0.07172469]
[1771116445392,0.00044,69712.0,69711.0,0.07272469]
[1771116445589,0.00044,69712.0,69710.0,0.07172496]
[1771116445988,0.00044,69712.0,69706.0,0.28691664]
[1771116446828,0.00044,69712.0,69711.0,0.07172469]
[1771116447464,0.00044,69712.0,69711.0,0.07272469]
[1771116447601,0.00044,69712.0,69711.0,0.07172469]
[1771116448079,0.00144,69712.0,69711.0,0.07172469]
[1771116448776,0.00144,69712.0,69701.0,1e-08]
[1771116448985,0.07173149,69705.0,69701.0,1e-08]
[1771116449192,0.09389581,69704.0,69701.0,1e-08]
[1771116449843,0.07173395,69702.0,69701.0,1e-08]
[1771116451406,0.07773395,69702.0,69701.0,1e-08]
[1771116451910,0.07773395,69702.0,69694.0,0.02352109]
[1771116451911,0.07124092,69696.0,69694.0,0.02352109]
[1771116452951,0.07173941,69697.0,69694.0,0.02352109]
[1771116453498,0.07173846,69698.0,69694.0,0.02352109]
[1771116454118,0.002,69696.0,69694.0,0.02352109]
[1771116454316,0.07173846,69698.0,69694.0,0.02352109]
[1771116455081,0.07373846,69698.0,69694.0,0.02352109]
[1771116456943,0.07173846,69698.0,69694.0,0.02352109]
[1771116457341,0.07173846,69698.0,69694.0,0.03052109]
[1771116457557,0.09188,69729.0,69697.0,0.07173826]
[1771116457558,0.07172993,69706.0,69697.0,0.07173826]
[1771116457770,0.16562574,69706.0,69697.0,0.07173826]
[1771116458401,4e-05,69698.0,69697.0,0.07169826]
[1771116458607,4e-05,69698.0,69697.0,0.09501935]
[1771116459015,4e-05,69698.0,69697.0,0.10001935]
[1771116459215,4e-05,69700.0,69699.0,0.07173704]
[1771116459371,4e-05,69702.0,69701.0,0.02332109]
[1771116459774,4e-05,69702.0,69701.0,0.01532109]
[1771116461323,4e-05,69702.0,69701.0,0.02132109]
[1771116463187,4e-05,69702.0,69701.0,0.006]
[1771116463403,4e-05,69702.0,69700.0,0.09564161]
[1771116464176,4e-05,69702.0,69700.0,0.09564197]
[1771116465014,4e-05,69702.0,69700.0,0.023906]
[1771116465219,4e-05,69702.0,69699.0,0.34372]
[1771116466248,4e-05,69702.0,69699.0,0.367626]
[1771116466738,4e-05,69702.0,69699.0,0.43936225]
[1771116467096,0.00044,69702.0,69699.0,0.43936225]
[1771116467737,0.00044,69702.0,69700.0,0.07173552]
[1771116467935,0.0934526,69715.0,69704.0,4e-05]
[1771116468150,0.07172502,69711.0,69701.0,0.07173498]
[1771116468308,4e-05,69712.0,69703.0,0.07173211]
[1771116468506,0.07172638,69710.0,69702.0,0.09563995]
[1771116469454,0.07172694,69709.0,69702.0,0.09563995]
[1771116470219,0.07172694,69709.0,69700.0,0.50435093]
[1771116470819,0.07172694,69709.0,69702.0,0.07173321]
[1771116471750,0.07172694,69709.0,69702.0,0.07195821]
[1771116472938,0.0934926,69712.0,69702.0,0.000225]
[1771116473169,4e-05,69704.0,69702.0,0.000225]
[1771116477447,0.02297681,69700.0,69698.0,0.34376]
[1771116477743,4e-05,69704.0,69698.0,0.34376]
[1771116477939,0.02301681,69704.0,69698.0,0.34376]
[1771116478318,0.07173377,69703.0,69698.0,0.34376]
[1771116478638,0.07173412,69702.0,69698.0,0.34376]
[1771116478849,0.09471093,69702.0,69698.0,0.34376]
[1771116479203,0.07173498,69701.0,69698.0,0.34376]
[1771116479442,0.02297681,69702.0,69698.0,0.34376]
[1771116479606,0.09471112,69702.0,69698.0,0.34376]
[1771116480671,0.07173655,69700.0,69698.0,0.34376]
[1771116480875,1e-08,69699.0,69695.0,0.09188]
[1771116482370,0.07173552,69701.0,69695.0,0.09188]
[1771116482690,0.07173601,69700.0,69695.0,0.09188]
[1771116483431,0.0430215,69700.0,69695.0,0.09288]
[1771116483617,0.07173797,69699.0,69695.0,0.09288]
[1771116484161,0.07173797,69699.0,69695.0,0.09188]
[1771116484561,0.0430215,69700.0,69695.0,0.09188]
[1771116484963,0.0717352,69701.0,69695.0,0.09188]
[1771116485162,0.07173646,69700.0,69695.0,0.08878]
[1771116486051,0.07173646,69700.0,69695.0,0.09178]
[1771116486352,0.07173646,69700.0,69695.0,0.08878]
[1771116486755,0.07173646,69700.0,69695.0,0.09078]
[1771116487549,0.07173646,69700.0,69695.0,0.09098]
[1771116488341,4e-05,69696.0,69695.0,0.09094]
[1771116488639,4e-05,69700.0,69695.0,0.09094]
[1771116489246,0.0934526,69699.0,69693.0,0.0001945]
[1771116489597,0.16518965,69699.0,69693.0,0.07193765]
[1771116489814,0.07173705,69699.0,69693.0,0.07193765]
[1771116490056,0.07173705,69699.0,69693.0,0.0001945]
[1771116490390,0.09775306,69700.0,69693.0,0.07193737]
[1771116490515,0.09475306,69700.0,69693.0,0.07193737]
[1771116490714,0.07173716,69699.0,69693.0,0.0001945]
[1771116490914,0.0934526,69699.0,69688.0,0.0002]
[1771116491174,0.07174568,69691.0,69688.0,0.0002]
[1771116492300,0.07178924,69691.0,69688.0,0.0002]
[1771116492707,0.07174715,69690.0,69688.0,0.0002]
[1771116492914,0.07174824,69690.0,69684.0,0.00024]
[1771116493300,0.07174825,69689.0,69684.0,0.00024]
[1771116494512,0.07774825,69689.0,69684.0,0.00024]
[1771116494727,0.006,69689.0,69684.0,0.07199245]
[1771116494926,0.006,69689.0,69685.0,0.07175059]
[1771116495766,0.006,69689.0,69684.0,0.07199213]
[1771116496062,0.07178883,69691.0,69684.0,0.07199213]
[1771116496419,0.002,69689.0,69684.0,0.07199213]
[1771116496642,0.07178883,69691.0,69684.0,0.07199213]
[1771116496848,0.07178921,69691.0,69684.0,0.07199214]
[1771116497384,0.001,69689.0,69684.0,0.07199214]
[1771116497584,0.07178921,69691.0,69684.0,0.07199214]
[1771116497922,0.07378921,69691.0,69684.0,0.07199214]
[1771116498121,0.07174656,69690.0,69684.0,0.00024]
[1771116498345,0.07378898,69691.0,69684.0,0.07199236]
[1771116498569,0.07174656,69690.0,69684.0,0.00024]
[1771116498797,0.07174762,69689.0,69684.0,0.00024]
[1771116499386,0.07274762,69689.0,69684.0,0.00024]
[1771116499595,0.001,69689.0,69684.0,0.00024]
[1771116500202,0.07174633,69690.0,69684.0,0.00024]
[1771116500404,0.07175035,69687.0,69684.0,0.00024]
[1771116500606,0.28702691,69691.0,69684.0,0.00024]
[1771116500607,0.07175035,69688.0,69684.0,0.00024]
[1771116502611,0.07174965,69687.0,69684.0,0.00024]
[1771116502809,0.07175035,69688.0,69684.0,0.00024]
[1771116503208,0.07879035,69688.0,69684.0,0.00024]
[1771116503602,0.07179035,69688.0,69684.0,0.00024]
[1771116504052,0.07879035,69688.0,69684.0,0.00024]
[1771116505158,0.07179035,69688.0,69684.0,0.00024]
[1771116505425,4e-05,69688.0,69684.0,0.00024]
[1771116505627,0.00604,69688.0,69684.0,0.00024]
[1771116505835,0.07175351,69683.0,69682.0,0.0001945]
[1771116506860,0.07175454,69682.0,69680.0,0.00032]
[1771116508305,0.07175454,69682.0,69677.0,0.0002]
[1771116508306,0.19037078,69682.0,69677.0,0.0002]
[1771116508657,0.07175454,69682.0,69677.0,0.0002]
[1771116509390,0.07175454,69682.0,69680.0,0.003]
[1771116509522,0.07175557,69681.0,69677.0,0.0002]
[1771116510108,0.07175557,69681.0,69677.0,0.0082]
[1771116510313,0.07175471,69682.0,69677.0,0.0082]
[1771116510493,0.07175596,69681.0,69677.0,0.0082]
[1771116510706,0.07175471,69682.0,69677.0,0.0082]
[1771116511871,0.28700804,69685.0,69677.0,0.0002]
[1771116512110,0.07175866,69678.0,69677.0,1e-08]
[1771116512334,0.07176146,69676.0,69673.0,0.0002]
[1771116512519,0.09451085,69682.0,69664.0,1e-08]
[1771116512691,0.00044,69688.0,69651.0,0.0014359]
[1771116512692,0.02410539,69669.0,69651.0,0.0014359]
[1771116512873,0.07177611,69662.0,69653.0,0.07178421]
[1771116513073,0.07177611,69662.0,69653.0,0.07178424]
[1771116513272,0.07177611,69662.0,69652.0,0.07178451]
[1771116513582,0.02410539,69667.0,69652.0,0.07178451]
[1771116513583,0.07177205,69665.0,69657.0,0.07177939]
[1771116513760,0.07177205,69665.0,69656.0,0.07208957]
[1771116513928,0.07177205,69665.0,69657.0,0.0001308]
[1771116514303,0.31118884,69667.0,69657.0,0.0001308]
[1771116515024,0.07177851,69659.0,69657.0,0.0001308]
[1771116515240,0.11861624,69667.0,69651.0,1e-08]
[1771116515241,0.00042,69656.0,69651.0,1e-08]
[1771116515629,0.02452539,69656.0,69651.0,0.00043602]
[1771116515778,0.07178541,69653.0,69651.0,0.00043602]
[1771116516165,0.07178544,69652.0,69651.0,0.00043602]
[1771116516744,0.07178544,69652.0,69651.0,1e-08]
[1771116516913,0.19040271,69651.0,69650.0,1e-08]
[1771116517122,0.19083832,69651.0,69650.0,1e-08]
[1771116517379,0.02410539,69646.0,69630.0,0.02339926]
[1771116517569,0.0003,69633.0,69630.0,0.00035]
[1771116517772,0.0003,69633.0,69630.0,0.0651571]
[1771116518262,0.0003,69633.0,69631.0,0.07180673]
[1771116518470,0.0003,69633.0,69627.0,0.07181096]
[1771116518806,0.0013,69633.0,69627.0,0.07181096]
[1771116519219,0.0013,69633.0,69628.0,0.07181001]
[1771116519220,0.0003,69633.0,69628.0,0.07181001]
[1771116519393,0.0003,69633.0,69626.0,0.07181153]
[1771116519620,0.09451085,69631.0,69620.0,0.00572069]
[1771116519820,0.11861624,69629.0,69620.0,0.07753878]
[1771116520248,0.02410539,69628.0,69620.0,0.07753892]
[1771116520444,0.02410539,69628.0,69625.0,0.07181232]
[1771116520646,0.34372,69636.0,69620.0,0.00572069]
[1771116520647,0.34372,69636.0,69621.0,0.02341]
[1771116520853,0.00042,69635.0,69624.0,0.07181328]
[1771116521052,0.00042,69635.0,69627.0,0.02341]
[1771116521391,0.34415534,69636.0,69628.0,0.07180925]
[1771116521532,0.34415534,69636.0,69629.0,0.07180898]
[1771116521739,0.34415534,69636.0,69626.0,0.02341]
[1771116521974,0.34415534,69636.0,69625.0,0.28724901]
[1771116522184,0.34415534,69636.0,69633.0,0.07180405]
[1771116522638,0.34515534,69636.0,69633.0,0.07180405]
[1771116523068,0.34415534,69636.0,69633.0,0.07180405]
[1771116524209,0.34105534,69636.0,69633.0,0.07180405]
[1771116524368,0.34305534,69636.0,69633.0,0.07180405]
[1771116524593,0.34105534,69636.0,69633.0,0.07180405]
[1771116524781,0.34105534,69636.0,69634.0,0.07180368]
[1771116525016,0.00012,69640.0,69633.0,0.001]
[1771116525205,0.00012,69640.0,69638.0,0.07179908]
[1771116525381,0.00012,69640.0,69634.0,0.07180379]
[1771116525784,0.00012,69640.0,69636.0,0.0718018]
[1771116527627,0.34376,69645.0,69634.0,0.003]
[1771116527779,0.00016,69650.0,69644.0,0.07179346]
[1771116528635,0.001,69645.0,69644.0,0.07179346]
[1771116528989,0.07194757,69650.0,69641.0,0.07179605]
[1771116529801,0.07178954,69649.0,69642.0,0.07179568]
[1771116530268,0.07194757,69650.0,69642.0,0.07179568]
[1771116530415,0.07178865,69649.0,69642.0,0.07179568]
[1771116531231,0.07178965,69648.0,69640.0,0.07179725]
[1771116531440,0.07178965,69648.0,69641.0,0.07179655]
[1771116531637,0.07178862,69649.0,69641.0,0.07179655]
[1771116531843,0.07178862,69649.0,69640.0,0.07179583]
[1771116531844,0.002,69649.0,69640.0,0.07179583]
[1771116532042,0.07178869,69649.0,69642.0,0.07179542]
[1771116532244,0.07178869,69649.0,69641.0,0.07179651]
[1771116532447,0.002,69648.0,69643.0,0.07179467]
[1771116532651,0.07194764,69650.0,69643.0,0.07179467]
[1771116532847,0.002,69649.0,69643.0,0.07179467]
[1771116533046,0.002,69649.0,69639.0,0.02361751]
[1771116533291,4e-05,69648.0,69646.0,0.07167091]
[1771116533501,4e-05,69648.0,69645.0,0.07179091]
[1771116533666,4e-05,69648.0,69646.0,0.07179163]
[1771116534192,4e-05,69648.0,69645.0,0.07179091]
[1771116534388,0.00404,69648.0,69645.0,0.07179091]
[1771116534588,0.00404,69648.0,69644.0,0.07179333]
[1771116534789,4e-05,69648.0,69644.0,0.07179333]
[1771116534955,0.00304,69648.0,69644.0,0.07179333]
[1771116535289,4e-05,69648.0,69644.0,0.07179333]
[1771116535788,0.00304,69648.0,69644.0,0.07179333]
[1771116535992,4e-05,69648.0,69644.0,0.07179333]
[1771116536294,0.00204,69648.0,69645.0,0.0717925]
[1771116537132,0.00016,69650.0,69649.0,0.07178853]
[1771116537133,1e-08,69650.0,69649.0,0.07178853]
[1771116537633,1e-08,69650.0,69645.0,0.02361751]
[1771116537634,4e-05,69654.0,69653.0,0.07178441]
[1771116538569,0.0004,69659.0,69649.0,0.11958044]
[1771116538774,0.0004,69659.0,69658.0,0.07177926]
[1771116539914,0.0004,69659.0,69658.0,0.07191004]
[1771116540518,0.3442,69666.0,69663.0,0.07177411]
[1771116540519,0.00044,69666.0,69663.0,0.07177411]
[1771116540807,0.00044,69666.0,69659.0,0.02361751]
[1771116541004,0.00044,69666.0,69660.0,0.02361751]
[1771116541233,0.0001156,69667.0,69660.0,0.02361751]
[1771116541434,0.0001156,69667.0,69666.0,0.07177102]
[1771116541667,0.0001156,69667.0,69664.0,0.07177219]
[1771116541871,0.0001156,69667.0,69666.0,0.07177102]
[1771116542074,0.0001156,69667.0,69658.0,0.09609371]
[1771116542075,0.0718769,69680.0,69660.0,0.00012]
[1771116542313,0.00012,69680.0,69674.0,0.07176263]
[1771116543160,0.00012,69680.0,69672.0,0.0717643]
[1771116543365,0.00012,69680.0,69670.0,0.02361751]
[1771116543569,0.07176044,69677.0,69670.0,0.02361751]
[1771116543977,0.07176044,69677.0,69670.0,0.07176689]
[1771116544373,0.07176044,69677.0,69668.0,0.0382423]
[1771116544608,0.07175898,69678.0,69668.0,0.0382423]
[1771116545162,0.00912,69680.0,69677.0,0.07175956]
[1771116545551,0.00012,69680.0,69676.0,0.07176058]
[1771116545735,0.001,69677.0,69676.0,0.07176058]
[1771116545933,0.00052,69680.0,69678.0,0.07175858]
[1771116546304,0.00052,69680.0,69675.0,0.07176175]
[1771116546554,0.00052,69680.0,69674.0,0.07176207]
[1771116546760,0.07175829,69679.0,69667.0,0.31069638]
[1771116546958,0.07175829,69679.0,69672.0,0.07176457]
[1771116547625,0.007,69680.0,69676.0,0.07175998]
[1771116547837,0.07175343,69685.0,69676.0,0.07175998]
[1771116548034,0.07175273,69684.0,69676.0,0.07175998]